Cogmind - Beta 13 @@@ ROGUE MODE // 2024.04.25 @ 04:10:09 Player: Vyx Result: Destroyed by D-63 Destroyer with Heavy Rocket Launcher Performance ------------- Evolutions (5) 2500 Regions Visited (6) 1200 Robots Destroyed (63) 315 Value Destroyed (2117) 2117 Prototype IDs (3) 60 Alien Tech Used (0) 0 Bonus (37) 37 TOTAL SCORE: 6229 Bonus ------- High Alert Combat Kills 37 Cogmind --------- Core Integrity 0/1000 Matter 299/300 Energy 99/100 System Corruption 10% Temperature Cool (0) Movement Core (50) Location -5/Factory Parts ------- > --- POWER (2) -------- (None) > --- PROPULSION (5) --- (None) > --- UTILITY (6) ------ Target Analyzer > --- WEAPON (4) ------- (None) > --- INVENTORY (5) ---- Hypervelocity Coil Gun Peak State ------------ > --- POWER ------------ Fission Core Fission Core > --- PROPULSION ------- Improved Titanium Leg Flexi-carbon Leg Flexi-carbon Leg Armored Leg > --- UTILITY ---------- Medium Storage Unit Advanced Terrain Scanner Phase Shifter Hardened Light Armor Plating Hardened Light Armor Plating Improved Field Recycling Unit > --- WEAPON ----------- Gauss Rifle Gauss Rifle Gauss Rifle > --- INVENTORY -------- Fission Core Flexi-carbon Leg Flexi-carbon Leg Improved EM Pulse Cannon Minigun Barrage Gun Gauss Rifle Flak Gun EMP Blaster Powered Hammer [Rating: 63] Favorites ----------- Power Ion Engine Engine Ion Engine Power Core Fission Core Propulsion Subdweller Monowheel Treads Light Treads Leg Flexi-carbon Leg Wheel Subdweller Monowheel Utility Humpback Device Matter Filter Storage Humpback Processor Targeting Computer Protection Hardened Light Armor Plating Weapon Battle Cannon Energy Gun Heavy Laser Energy Cannon Phase Cannon Ballistic Gun Gauss Rifle Ballistic Cannon Battle Cannon Launcher Grenade Launcher Build | -11 -10 -10 -8 -7 -6 -5 ------- Run | Yrd Mat Sub Mat Fac Fac Fac Slots Evolved 10 | . . . 4 2 2 2 Power 1 | . . . . . 1 . Propulsion 3 | . . . 2 . . 1 Utility 4 | . . . 2 2 . . Weapon 2 | . . . . . 1 1 Parts Attached 96 | 6 3 14 8 14 43 8 Power 10 | 1 . . . 1 8 . Engine 4 | 1 . . . 1 2 . Core 6 | . . . . . 6 . Reactor . | . . . . . . . Propulsion 26 | 2 . 5 3 5 8 3 Treads 4 | 2 . . . 2 . . Leg 13 | . . . . 3 8 2 Wheel 9 | . . 5 3 . . 1 Hover . | . . . . . . . Flight . | . . . . . . . Utility 27 | 1 1 1 2 5 15 2 Device 13 | . . . . 4 7 2 Storage 5 | 1 1 1 . . 2 . Processor 2 | . . . . . 2 . Hackware . | . . . . . . . Protection 7 | . . . 2 1 4 . Artifact . | . . . . . . . Weapon 33 | 2 2 8 3 3 12 3 Energy Gun 1 | . . . . . 1 . Energy Cannon 5 | . . . . . 4 1 Ballistic Gun 17 | 2 2 3 . 2 7 1 Ballistic Cannon 4 | . . 2 2 . . . Launcher 6 | . . 3 1 1 . 1 Special Weapon . | . . . . . . . Impact Weapon . | . . . . . . . Slashing Weapon . | . . . . . . . Piercing Weapon . | . . . . . . . Special Melee Weapon . | . . . . . . . Unidentified Prototypes 2 | . . . . . . 2 Parts Lost 50 | . . 1 1 5 29 14 Power 6 | . . . . 1 3 2 Propulsion 12 | . . . . . 7 5 Utility 18 | . . . 1 2 13 2 Weapon 14 | . . 1 . 2 6 5 Highest Loss Streak 13 | . . 1 1 5 12 13 To Critical Strikes . | . . . . . . . Average Slot Usage (%) 84 | . 98 88 71 73 86 59 Engine 9 | . 14 14 9 6 5 . Core 1 | . . . . . 4 7 Treads 5 | . 28 5 . 7 . . Leg 8 | . . . . 11 22 16 Wheel 12 | . . 21 26 10 1 3 Device 5 | . . . . 8 15 7 Storage 11 | . 26 16 9 2 4 . Protection 4 | . . . 8 8 9 . Energy Cannon 1 | . . . . . 1 13 Ballistic Gun 15 | . 28 17 5 8 15 . Ballistic Cannon 5 | . . 10 12 5 . . Naked Turns . | . . . . . . . Heaviest Build 230 | 14 36 212 230 221 69 50 Greatest Support 80 | 40 40 40 80 35 76 76 Greatest Overweight (x) 10 | . . 10 7 7 1 3 Average Overweight (x) 2 | . . 3 4 2 . 1 Largest Inventory Capacity 35 | 8 15 35 35 35 10 5 Average Capacity 20 | 7 14 30 35 17 8 5 Most Carried 35 | 6 15 35 34 27 10 4 Average Carried 16 | 3 9 25 30 12 7 1 Final Capacity 35 | 8 15 35 35 5 5 5 Final Carried 35 | 6 15 35 28 5 5 1 Class Distribution -------------------- 42% | Hauler-Mutant 19% | Mutant 15% | Scavenger-Tank 11% | Scavenger-Mutant 8% | Scavenger-Gunner Dominant Class ---------------- Mutant | -10/Materials Hauler-Mutant | -10/Subcaves Hauler-Mutant | -8/Materials Scavenger-Mutant | -7/Factory Scavenger-Tank | -6/Factory Gunner | -5/Factory Resources | -11 -10 -10 -8 -7 -6 -5 ----------- Run | Yrd Mat Sub Mat Fac Fac Fac Matter Collected 2382 | 238 74 456 206 120 1149 139 Remotely . | . . . . . . . Salvage Created 2100 | . 81 365 268 130 1032 224 Parts 132 | . 8 33 25 4 60 2 Haulers Intercepted 1 | . 1 . . . . . Recyclers Shooed . | . . . . . . . Parts Field Recycled 31 | . . . . . 31 . Retrieved Matter 285 | . . . . . 285 . Parts Self-Destructed 2 | . . 2 . . . . Prevented . | . . . . . . . Kills | -11 -10 -10 -8 -7 -6 -5 ------- Run | Yrd Mat Sub Mat Fac Fac Fac Combat Hostiles Destroyed 59 | . 3 16 6 4 20 10 Guns 27 | . 3 5 2 1 16 . Cannons 15 | . . 4 3 1 3 4 AOE 15 | . . 7 1 2 . 5 Classes Destroyed 13 | . 2 3 4 . 3 1 Worker 2 | . . . 1 . 1 . Builder 5 | . . . 5 . . . Hauler 1 | . 1 . . . . . Recycler 2 | . . . 1 . 1 . Turret 1 | . . 1 . . . . Swarmer 19 | . 3 6 3 . 7 . Grunt 11 | . . . 2 4 3 2 Brawler 2 | . . . . . 1 1 Sentry 3 | . . 1 1 . 1 . Hunter 6 | . . . . . 6 . Programmer 2 | . . . . . 2 . Subdweller 9 | . . 9 . . . . Assembled 7 | . . . . . . 7 Best Kill Streak 7 | . 3 4 5 3 4 7 Combat Bots Only 7 | . 3 4 3 3 4 7 Max Kills in Single Turn 3 | . 1 3 1 1 1 3 Gunslinging . | . . . . . . . Exploded 3 | . . 3 1 1 . 2 Melee . | . . . . . . . Uniques/NPCs Destroyed . | . . . . . . . Combat | -11 -10 -10 -8 -7 -6 -5 -------- Run | Yrd Mat Sub Mat Fac Fac Fac Hostile Shots Fired 667 | . 10 110 25 31 402 89 Missed 179 | . 4 44 7 7 93 24 Damage Taken 8531 | . 42 926 297 423 4185 2658 Core 1924 | . . 222 21 19 658 1004 Absorbed by Shields . | . . . . . . . Ignored by Resistances 192 | . . . . . 192 . Core Remaining (%) 65 | 100 . 11 96 97 22 . Volleys Fired 211 | . 7 58 24 15 89 18 Largest 4 | . 2 2 2 2 3 4 Hottest 283 | . 40 69 78 78 182 283 Shots Fired 462 | . 14 98 43 22 238 47 Gun 315 | . 14 50 16 5 226 4 Cannon 131 | . . 38 24 15 12 42 Launcher 16 | . . 10 3 2 . 1 Special . | . . . . . . . Kinetic 381 | . 14 88 40 20 215 4 Thermal 60 | . . . . . 18 42 Explosive 15 | . . 10 3 2 . . Electromagnetic 6 | . . . . . 5 1 Robot Hit Streak 16 | . 5 16 5 7 8 6 Robot Miss Streak 6 | . 2 2 4 1 6 4 Penetration Max 1 | . . . . . 1 . Secondary Targets 4 | . 1 . . . 3 . Max Gunslinging Chain 1 | . 1 . . . 1 . Shots Hit Robots 275 | . 7 63 22 18 145 20 Core Hits 134 | . 5 30 16 8 54 21 Critical Kills 4 | . . . . . 3 1 Critical Parts Destroyed 2 | . . . . . 1 1 Critical Strikes 12 | . . 4 . 2 4 2 Meltdown 1 | . . . . . . 1 Destroy 5 | . . . . . 4 1 Blast 6 | . . 4 . 2 . . Melee Attacks . | . . . . . . . Impact . | . . . . . . . Slashing . | . . . . . . . Piercing . | . . . . . . . Sneak Attacks . | . . . . . . . Combat Hostiles . | . . . . . . . Follow-up Attacks . | . . . . . . . Damage Inflicted 6816 | . 88 1556 755 473 2772 1172 Guns 3543 | . 88 723 203 68 2446 15 Cannons 1920 | . . 506 263 231 326 594 Explosions 1348 | . . 327 289 174 . 558 Melee . | . . . . . . . Ramming 5 | . . . . . . 5 Kinetic 4455 | . 88 1229 466 299 2358 15 Thermal 867 | . . . . . 273 594 Explosive 1173 | . . 327 289 174 . 383 Electromagnetic 316 | . . . . . 141 175 Impact . | . . . . . . . Slashing . | . . . . . . . Piercing . | . . . . . . . Highest Corruption 15 | . . . . . 15 10 Average Corruption 10 | . . . . . 10 9 Corruption Purged . | . . . . . . . Corruption Blocked . | . . . . . . . Effects 42 | . . . . . 37 5 Message Errors 9 | . . . . . 9 . Matter Fused 7 | . . . . . 7 . Heat Flow Errors 5 | . . . . . 4 1 Energy Discharges 3 | . . . . . 3 . Data Loss (minor) 6 | . . . . . 4 2 Data Loss (major) 2 | . . . . . 1 1 Misfires 1 | . . . . . 1 . Alerts 1 | . . . . . 1 . Misdirections 2 | . . . . . 1 1 Weapon Failures 6 | . . . . . 6 . Overload Shots . | . . . . . . . Overflow Damage 94 | . . . 21 . . 73 Projectiles 21 | . . . 21 . . . Explosions 73 | . . . . . . 73 Melee . | . . . . . . . Knockbacks 11 | . . 5 2 3 . 1 Impact 1 | . . . . . . 1 Kinetic 10 | . . 5 2 3 . . Secondary . | . . . . . . . Self-Inflicted Damage 327 | . . . 26 . . 301 Shots 7 | . . . 2 . . 5 Rammed 2 | . . . . . . 2 Targets Rammed 2 | . . . . . . 2 Kicked . | . . . . . . . Crushed . | . . . . . . . Highest Temperature 611 | . . 292 27 72 611 441 Average Temperature 169 | . . 166 9 32 173 221 Received Heat Transfer 1552 | . . 567 81 252 405 247 Effects 57 | . . . . . 55 2 Shutdowns 21 | . . . . . 20 1 Energy Bleed 2 | . . . . . 2 . Interference 6 | . . . . . 6 . Matter Decay 3 | . . . . . 2 1 Short Circuit 4 | . . . . . 4 . Damage (minor) 3 | . . . . . 3 . Damage (major) 15 | . . . . . 15 . Damage (core) 3 | . . . . . 3 . Siege Activations . | . . . . . . . Robots Corrupted 1 | . . . . . 1 . Combat Hostiles 1 | . . . . . 1 . Parts Fried . | . . . . . . . Impact Corruptions . | . . . . . . . Robots Melted 1 | . . . . . . 1 Combat Hostiles 1 | . . . . . . 1 Parts Melted 1 | . . . . . . 1 Heat Transferred 1201 | . . . . . 370 831 Parts Sabotaged . | . . . . . . . Parts Stolen . | . . . . . . . Parts Stripped . | . . . . . . . Power Chain Reactions . | . . . . . . . Alert | -11 -10 -10 -8 -7 -6 -5 ------- Run | Yrd Mat Sub Mat Fac Fac Fac Peak Influence 662 | . 92 . 662 234 262 269 Initial 422 | . . . 422 164 109 42 Average 164 | . 51 . 522 203 103 184 Maximum Alert Level 2 | . . . 2 1 1 1 Low Security (%) 71 | 100 100 . . 34 90 53 Level 1 16 | . . . 10 65 9 46 Level 2 11 | . . . 89 . . . Level 3 . | . . . . . . . Level 4 . | . . . . . . . Level 5 . | . . . . . . . High Security . | . . . . . . . Max Security . | . . . . . . . Squads Dispatched 13 | . . . 1 1 10 1 Investigation 2 | . . . . . 2 . Extermination 5 | . . . . 1 3 1 Reinforcement 3 | . . . 1 . 2 . Assault . | . . . . . . . Garrison 3 | . . . . . 3 . Intercept . | . . . . . . . Searches Triggered 1 | . . . 1 . . . Construction Impeded 1 | . . . 1 . . . Haulers Reinforced . | . . . . . . . Active Scanning Responses . | . . . . . . . Cargo Convoy Interrupts . | . . . . . . . Stealth | -11 -10 -10 -8 -7 -6 -5 --------- Run | Yrd Mat Sub Mat Fac Fac Fac Distress Signals 2 | . . . 2 . . . Communications Jammed . | . . . . . . . Distress Signals . | . . . . . . . Times Spotted 103 | . 4 39 12 6 25 17 Peak Tracking Total 8 | . 3 6 4 4 4 8 Tactical Retreats 10 | . . 5 2 1 2 . Traps | -11 -10 -10 -8 -7 -6 -5 ------- Run | Yrd Mat Sub Mat Fac Fac Fac Traps Triggered 6 | . . . 1 . 4 1 Indirectly . | . . . . . . . Trap Hack Attempts . | . . . . . . . Triggered . | . . . . . . . Disarmed . | . . . . . . . Reprogrammed . | . . . . . . . Reused . | . . . . . . . Traps Extracted . | . . . . . . . Installed . | . . . . . . . Triggered . | . . . . . . . Machines | -11 -10 -10 -8 -7 -6 -5 ---------- Run | Yrd Mat Sub Mat Fac Fac Fac Machines Disabled 7 | . . . . . . 7 Max in Single Turn 5 | . . . . . . 5 Machines Repaired . | . . . . . . . Machines Dismantled . | . . . . . . . Machines Sabotaged . | . . . . . . . Overloaded Fab Kills . | . . . . . . . Hacking | -11 -10 -10 -8 -7 -6 -5 --------- Run | Yrd Mat Sub Mat Fac Fac Fac Machines Accessed 1 | . . 1 . . . . Terminals . | . . . . . . . Fabricators . | . . . . . . . Repair Stations . | . . . . . . . Recycling Units . | . . . . . . . Scanalyzers . | . . . . . . . Garrison Access . | . . . . . . . Total Hacks 5 | . . 5 . . . . Successful 5 | . . 5 . . . . Failed . | . . . . . . . Catastrophic . | . . . . . . . Database Lockouts . | . . . . . . . Manual . | . . . . . . . Terminals . | . . . . . . . Fabricators . | . . . . . . . Repair Stations . | . . . . . . . Recycling Units . | . . . . . . . Scanalyzers . | . . . . . . . Garrison Access . | . . . . . . . Terminal Hacks 5 | . . 5 . . . . Record 5 | . . 5 . . . . Fabricator Hacks . | . . . . . . . Repair Station Hacks . | . . . . . . . Recycling Unit Hacks . | . . . . . . . Scanalyzer . | . . . . . . . Garrison Access Hacks . | . . . . . . . Unauthorized Hacks . | . . . . . . . Terminals . | . . . . . . . Fabricators . | . . . . . . . Repair Stations . | . . . . . . . Recycling Units . | . . . . . . . Scanalyzers . | . . . . . . . Garrison Access . | . . . . . . . Data Cores Recovered . | . . . . . . . Used . | . . . . . . . Hacking Detections . | . . . . . . . Full Trace Events . | . . . . . . . Feedback Events . | . . . . . . . Feedback Blocked . | . . . . . . . Robot Schematics Acquired . | . . . . . . . Robots Built . | . . . . . . . Authchips . | . . . . . . . Time . | . . . . . . . Total Robot Build Rating . | . . . . . . . Part Schematics Acquired . | . . . . . . . Parts Built . | . . . . . . . Authchips . | . . . . . . . Time . | . . . . . . . Total Part Build Rating . | . . . . . . . Parts Repaired . | . . . . . . . Time . | . . . . . . . Parts Recycled . | . . . . . . . Recycled Matter . | . . . . . . . Retrieved Matter . | . . . . . . . Retrieved Components . | . . . . . . . Parts Scanalyzed . | . . . . . . . Part Schematics Acquired . | . . . . . . . Parts Damaged . | . . . . . . . Bothacking | -11 -10 -10 -8 -7 -6 -5 ------------ Run | Yrd Mat Sub Mat Fac Fac Fac Used RIF Installer . | . . . . . . . Robots Hacked . | . . . . . . . Non-combat . | . . . . . . . Combat . | . . . . . . . Robot Hacks Applied . | . . . . . . . Relay Couplers Released . | . . . . . . . Fabnet Peak Effective % . | . . . . . . . Robots Rewired . | . . . . . . . Allies Hacked . | . . . . . . . Hacks Repelled . | . . . . . . . Allies | -11 -10 -10 -8 -7 -6 -5 -------- Run | Yrd Mat Sub Mat Fac Fac Fac Total Allies . | . . . . . . . Largest Group . | . . . . . . . Highest-Rated Group . | . . . . . . . Highest-Rated Ally . | . . . . . . . Total Orders . | . . . . . . . Ally Attacks . | . . . . . . . Total Damage . | . . . . . . . Kills . | . . . . . . . Allies Corrupted . | . . . . . . . Allies Melted . | . . . . . . . Intel | -11 -10 -10 -8 -7 -6 -5 ------- Run | Yrd Mat Sub Mat Fac Fac Fac Robot Analysis Total . | . . . . . . . Derelict Logs Recovered 2 | . . 2 . . . . Drone Launches . | . . . . . . . Drone Recoveries . | . . . . . . . Exploration | -11 -10 -10 -8 -7 -6 -5 ------------- Run | Yrd Mat Sub Mat Fac Fac Fac Turns Passed 5680 | 97 482 2269 445 372 1764 251 Spaces Moved 3181 | 54 259 1249 228 200 1047 144 Core 9 | 3 . . . . . 6 Treads 587 | 51 259 277 . . . . Legs 1239 | . . . . 122 1047 70 Wheels 1346 | . . 972 228 78 . 68 Hover . | . . . . . . . Flight . | . . . . . . . Fastest Speed 50 | 50 160 110 130 95 120 50 Average Speed 144 | 153 160 159 156 137 124 124 Slowest Speed 260 | 160 160 210 179 260 193 145 Overloaded Moves . | . . . . . . . Propulsion Burnouts . | . . . . . . . Robots Hopped . | . . . . . . . Cave-ins Triggered . | . . . . . . . Exploration Rate (%) 19 | 5 23 56 22 3 21 3 Regions Visited 6 Branch Regions 1 Pre-discovered Areas 2 | . . 2 . . . . Known Exits Taken 1 | . . 1 . . . . Unknown Exits Taken 5 | 1 1 . 1 1 1 . Scrap Searched 4 | . . 4 . . . . Spaces Dug . | . . . . . . . Terrain Destroyed 135 | . . 17 26 4 5 83 Melee . | . . . . . . . Projectile 16 | . . . 6 . 3 7 AOE 117 | . . 17 20 4 . 76 Terrain Rammed . | . . . . . . . Walls Destroyed . | . . . . . . . Machines Disabled . | . . . . . . . Actions | -11 -10 -10 -8 -7 -6 -5 --------- Run | Yrd Mat Sub Mat Fac Fac Fac Total 3870 | 65 312 1435 275 276 1327 180 Wait 217 | . 33 51 . 34 96 3 Move 3175 | 53 258 1248 227 199 1046 144 Hop . | . . . . . . . Pick Up 105 | 6 10 46 5 5 31 2 Fast Attach 33 | 6 1 . . 6 17 3 Attach 34 | . . 3 4 7 15 5 Detach 2 | . . . . 1 1 . Swap 29 | . 2 11 4 1 11 . Drop 60 | . 1 18 9 8 21 3 Fire 211 | . 7 58 24 15 89 18 Melee . | . . . . . . . Ram 2 | . . . . . . 2 Kick . | . . . . . . . Crush . | . . . . . . . Escape Stasis . | . . . . . . . Rewire . | . . . . . . . Trap . | . . . . . . . Miscellaneous 2 | . . . 2 . . . Route ------- -11/Scrapyard -10/Materials (discovered 2 exits: [*Min] / *Sub) -10/Subcaves (discovered 3 exits: *Mat x2 / *Rec) -8/Materials -7/Factory (discovered 2 exits: [*Fac] / [*Low]) -6/Factory -5/Factory History --------- Turn | Location | Event 8 | -11/Scrapyard | Discovered new exit (range 15) 98 | -11/Scrapyard | Entered Materials 114 | -10/Materials | Discovered new exit (range 16) 307 | -10/Materials | Build established: Mutant 567 | -10/Materials | Discovered new exit (range 9) 580 | -10/Materials | Entered Subcaves 755 | -10/Subcaves | Discovered new exit (range 13) 1253 | -10/Subcaves | Learned location of Storage (-8) 1360 | -10/Subcaves | Build established: Hauler-Mutant 1777 | -10/Subcaves | Identified exit to Materials 1848 | -10/Subcaves | Visited Clippyterm 1852 | -10/Subcaves | Identified exit to Recycling 1852 | -10/Subcaves | Learned Factory trap positions 1961 | -10/Subcaves | Core integrity fell below 50% 1987 | -10/Subcaves | A swath of the cavern ceiling suddenly collapsed 2321 | -10/Subcaves | Shifting Twisted Machinery released Riot Gun 2490 | -10/Subcaves | Shifting Twisted Machinery released Mak. Kinetic Plating 2541 | -10/Subcaves | Learned location of Zion (-7) 2541 | -10/Subcaves | Met a Zionite searching for "candidates" 2605 | -10/Subcaves | Core integrity fell below 20% 2849 | -10/Subcaves | Entered Materials 2849 | -8/Materials | Evolved 4 slots: Propulsion x2, Utility x2 3185 | -8/Materials | Discovered new exit (range 13) 3249 | -8/Materials | Search patrols dispatched 3294 | -8/Materials | Entered Factory 3294 | -7/Factory | Evolved 2 slots: Utility x2 3295 | -7/Factory | Loaded intel: 88 trap records 3481 | -7/Factory | Lost 5 parts (1p2u2w) 3555 | -7/Factory | Discovered new exit (range 4) 3659 | -7/Factory | Discovered new exit (range 3) 3666 | -7/Factory | Entered another Factory area 3666 | -6/Factory | Evolved 2 slots: Power x1, Weapon x1 3779 | -6/Factory | Build established: Scavenger-Mutant 4607 | -6/Factory | Garrison activated, responded to threat 4660 | -6/Factory | Build established: Scavenger-Tank 4676 | -6/Factory | Lost 4 parts (1p1n2u) 4845 | -6/Factory | Lost 10 parts (2p1n5u2w) 5119 | -6/Factory | Core integrity fell below 50% 5136 | -6/Factory | System corruption reached 10% 5313 | -6/Factory | Lost 12 parts (4n6u2w) 5382 | -6/Factory | Discovered new exit (range 13) 5430 | -6/Factory | Entered another Factory area 5430 | -5/Factory | Evolved 2 slots: Propulsion x1, Weapon x1 5579 | -5/Factory | Assembled infested ambush trap array 5604 | -5/Factory | System corruption reached 10% 5635 | -5/Factory | Destroyed 7 combat bots 5664 | -5/Factory | Core integrity fell below 50% 5673 | -5/Factory | Core integrity fell below 20% 5681 | -5/Factory | Destroyed by D-63 Destroyer with Heavy Rocket Launcher Last Messages --------------- 05648_ The unstable cave ceiling collapses. 05651_ HV Slug penetrates Earth. 05652_ Hyp. Coil Gun destroyed. 05659_ The unstable cave ceiling collapses. 05661_ Arm. Leg destroyed. 05662_ The unstable cave ceiling collapses. 05664_ System corrupted: Substantial component data lost. 05668_ The unstable cave ceiling collapses. 05675_ Enh. Armored Leg destroyed. 05676_ The unstable cave ceiling collapses. 05679_ Slammed into D-63 Destroyer. 05679_ D-63 Destroyer knocked back. 05679_ Target Analyzer broken. 05679_ Destabilizing: Short circuit. 05679_ K-01 Serf collects debris. 05680_ The unstable cave ceiling collapses. 05680_ ALERT: Rogue bot located, Programmers report to Factory Zone 5Y. 05680_ Slammed into D-63 Destroyer. 05680_ Destabilizing: Core damaged (-30). 05681_ The unstable cave ceiling collapses. Map ----- +----------------------------------------------------+ | ?????????????????????????????????????????????????? | | ?????????????????????????????????????????????????? | | ?????????????????????????????????????????????????? | | ?????????????????????????????????????????????????? | | ?????????????????????? ??????????????????????? | | ???????????????????? ??????????????????????? | | ???????????????????? ??????????????????????? | | ???????????????????? ??????????????????????? | | ????????????????????# #??????????????????????? | | ????????????????????#% #??????????????????????? | | ????????????????? ??#!= #??????????????????????? | | ????????????????"" ?#%! #?#####????????????????? | | ??????????????? #*| ### #####????????????? | | ???????????????""" # ## ###??????????? | | ?????????????? # # # # ##?????????? | | ??????????????"""" ] #?????????? | | ?????????????? # #??????????? | | ?????????????""""" ##?????????? | | ?????????????? #?????????? | | ????????????"""""" #??????????? | | ?????????????? #??????????? | | ?????????????????## #???????????? | | ?????????????????# d [ #???????????? | | ???????????####### ## ##???????????? | | ???????????# d # #???????????? | | ???????????# """ @ ## # # #???????????? | | ???????????# """ = # ###?????????? | | ???????????# """ #?????????? | | ???????????# #?????????? | | ???????????# """ # #?????????? | | ???????????# """ #?????????? | | ??????????## """ # #?????????? | | ????????### % #?????????? | | ???????### # ## # #?????????? | | ???????# #?????????? | | ???????# #?????????? | | ???????# #?????????? | | ???????# #?????????? | | ???????# #?????????? | | ???????# # ###########?????????? | | ???????# ####???????????????????? | | ???????# # #??????????????????????? | | ???????# # #??????????????????????? | | ???????# # #??????????????????????? | | ???????#" # #??????????????????????? | | ???????# #######??????????????????????? | | ???????####"""""#####????????????????????????????? | | ??????????#######????????????????????????????????? | | ?????????????????????????????????????????????????? | | ?????????????????????????????????????????????????? | +----------------------------------------------------+ Best States ------------- Heat Dissipation 54 Coolant Potential 50 Energy Generation 38 Energy Capacity 520 Matter Stores 300 Matter Capacity 450 Sight Range 16 Terrain Scan Range 20 Terrain Scan Density 10 Armor Coverage 800 Resistance: KI 10 Weapon Cycling 15 Phase Shifting 5 Evasion (%) 60 Targeting Accuracy 5 Target Analysis 5 Recoil Reduction 2 Matter Filtering 45 Item Schematics ----------------- None Robot Schematics ------------------ None Fabricated ------------ Nothing Alien Tech Used ----------------- None Achievements -------------- Packrat Please Form A Line Tank Challenges ------------ None Game ------ Seed PropulsionSegregatorExpander Manual? 0 Play Time 01:55:29 Cumulative 11.5 hours Start 2024.04.25 @ 00:37:33 End 2024.04.25 @ 04:10:09 Sessions 1 Manual Loads 0 Difficulty Rogue Special Mode None Game No. 4 Rogue 4 Adventurer 0 Explorer 0 Win Type - Total 0 Types 0/0/0/0/0/0/0/0/0 Lore% 1 Gallery% 16 Achievement% 12 Wizard Run 0 Options --------- Layout 0 ASCII 0 Keyboard 0 Movement Numpad Keybinds 0 Fullscreen 1 Font 18/SmallcapsGlow Map View 76x50 Zoom Use 13% Tactical HUD 1 Map Filters NONE Filters NONE Steam 1 RUN: 9ab79d30-1821-4e71-8c82-17d3ff8fd44c